[Event "WJCC U20 Girls 2019"]
[Site "New Delhi"]
[Date "2019.10.18"]
[Round "5.5"]
[White "Diakonova, Ekaterina"]
[Black "Shuvalova, Polina"]
[Result "0-1"]
[ECO "B32"]
[WhiteElo "2231"]
[BlackElo "2412"]
[Annotator "NA"]
[PlyCount "230"]
[EventDate "2019.10.15"]
[EventType "swiss"]
[EventCountry "IND"]
[SourceTitle "playchess.com"]
[Source "ChessBase"]
[SourceQuality "1"]
[TimeControl "40/5400+30:1800+30"]

1. e4 {[%emt 0:00:00]} c5 {[%emt 0:00:00]} 2. Nf3 {[%emt 0:00:00]} Nc6 {[%emt 0:00:00]} 3. d4 {[%emt 0:00:00]} cxd4 {[%emt 0:00:00]} 4. Nxd4 {[%emt 0:00:00]} e5 {[%emt 0:00:04]} 5. Nb5 {[%emt 0:00:00]} d6 {[%emt 0:00:04]} 6. N1c3 {[%emt 0:00:00]} a6 {[%emt 0:00:26]} 7. Na3 {[%emt 0:00:01]} Be7 {[%emt 0:00:14]} 8. Nc4 {[%emt 0:00:31]} b5 {[%emt 0:03:52]} 9. Ne3 {[%emt 0:00:22]} Nf6 {[%emt 0:00:36]} 10. Ned5 {[%emt 0:02:31]} Be6 {[%emt 0:04:01]} 11. Be3 {[%emt 0:09:10]} O-O {[%emt 0:01:19]} 12. Be2 {[%emt 0:03:51]} Rc8 {[%emt 0:05:08]} 13. O-O {[%emt 0:05:28]} Bxd5 {[%emt 0:03:17]} 14. exd5 {[%emt 0:01:22]} Nb8 {[%emt 0:06:39]} 15. a4 {[%emt 0:20:11]} b4 {[%emt 0:00:49]} 16. Na2 {[%emt 0:00:05]} a5 {[%emt 0:10:52]} 17. c3 {[%emt 0:00:08]} bxc3 {[%emt 0:00:12]} 18. Nxc3 {[%emt 0:00:06]} Nbd7 {[%emt 0:11:30]} 19. Bb5 {[%emt 0:06:52]} h6 {[%emt 0:03:45]} 20. Qe2 {[%emt 0:05:39]} Nc5 {[%emt 0:05:33]} 21. Bc6 {[%emt 0:03:25]} Nfd7 {[%emt 0:01:14]} 22. f3 {[%emt 0:02:54]} Bg5 {[%emt 0:03:02]} 23. Bf2 {[%emt 0:00:42]} Nb8 {[%emt 0:06:45]} 24. Bb5 {[%emt 0:01:37]} f5 {[%emt 0:01:29]} 25. Ra3 {[%emt 0:06:12]} Bh4 {[%emt 0:04:48]} 26. g3 {[%emt 0:02:05]} Bf6 {[%emt 0:00:55]} 27. Rb1 {[%emt 0:00:57]} Nbd7 {[%emt 0:00:49]} 28. b4 {[%emt 0:05:25]} axb4 {[%emt 0:00:11]} 29. Rxb4 {[%emt 0:00:04]} e4 {[%emt 0:03:13]} 30. f4 {[%emt 0:04:03]} Qa5 {[%emt 0:04:14]} 31. Na2 {[%emt 0:01:40]} Kh8 {[%emt 0:03:04]} 32. Be1 {[%emt 0:02:09]} Qc7 {[%emt 0:02:24]} 33. a5 {[%emt 0:04:27]} Nd3 {[%emt 0:01:02]} 34. Bxd3 {[%emt 0:01:21]} exd3 {[%emt 0:00:08]} 35. Qxd3 {[%emt 0:00:23]} Nc5 {[%emt 0:00:14]} 36. Qd1 {[%emt 0:05:16]} Rfe8 {[%emt 0:03:31]} 37. Bf2 {[%emt 0:05:06]} Ra8 {[%emt 0:03:53]} 38. Rb5 {[%emt 0:00:09]} Ne4 {[%emt 0:00:56]} 39. Bb6 {[%emt 0:01:05]} Qd7 {[%emt 0:03:41]} 40. Rb1 {[%emt 0:03:21]} Reb8 {[%emt 0:04:21]} 41. Qd3 $11 {[%emt 0:13:03]} (41. Kg2 $14) 41... Nc5 {[%emt 0:04:38]} 42. Qc2 {[%emt 0:06:20]} Qf7 {[%emt 0:03:56]} 43. Nc3 {[%emt 0:03:37]} Bd4+ {[%emt 0:01:25]} 44. Kg2 {[%emt 0:00:59]} Bxc3 {[%emt 0:00:17]} 45. Qxc3 {[%emt 0:00:43]} Qxd5+ {[%emt 0:00:14]} 46. Qf3 {[%emt 0:00:18]} Ne4 {[%emt 0:02:53]} 47. Rd1 {[%emt 0:02:27]} Qc6 {[%emt 0:02:39]} 48. Rad3 {[%emt 0:00:43]} Rxb6 {[%emt 0:02:46]} 49. axb6 {[%emt 0:00:06]} Qxb6 {[%emt 0:01:31]} 50. R3d2 {[%emt 0:04:00]} Rc8 {[%emt 0:03:09]} 51. Qd3 {[%emt 0:02:18]} Rc3 {[%emt 0:03:39]} 52. Qd4 {[%emt 0:00:05]} Qc6 {[%emt 0:00:29]} 53. Qd5 {[%emt 0:00:27]} Nxd2 {[%emt 0:01:54]} 54. Rxd2 {[%emt 0:00:45]} g6 {[%emt 0:00:38]} 55. Qxc6 {[%emt 0:00:53]} Rxc6 {[%emt 0:00:02]} 56. Kf3 {[%emt 0:00:01]} Kg7 {[%emt 0:00:25]} 57. Ke3 {[%emt 0:00:05]} Kf6 {[%emt 0:00:43]} 58. Kd4 {[%emt 0:00:09]} Rc5 {[%emt 0:02:39]} 59. Re2 {[%emt 0:02:16]} g5 {[%emt 0:00:59]} 60. fxg5+ {[%emt 0:00:10]} hxg5 {[%emt 0:00:12]} 61. Re8 {[%emt 0:00:02]} Rc2 {[%emt 0:01:09]} 62. Rf8+ {[%emt 0:00:15]} Ke6 {[%emt 0:00:16]} 63. Rg8 {[%emt 0:00:29]} Kf6 {[%emt 0:01:42]} 64. Rf8+ {[%emt 0:00:01]} Kg6 {[%emt 0:00:38]} 65. Rh8 {[%emt 0:01:02]} Rd2+ {[%emt 0:01:26]} 66. Ke3 {[%emt 0:00:05]} Ra2 {[%emt 0:01:10]} 67. Rd8 {[%emt 0:01:34]} Ra6 {[%emt 0:02:08]} 68. Rf8 {[%emt 0:00:59]} g4 {[%emt 0:00:50]} 69. Kd4 {[%emt 0:00:53]} Ra2 {[%emt 0:00:25]} 70. Rh8 {[%emt 0:00:15]} Kg7 {[%emt 0:00:57]} 71. Rh5 {[%emt 0:00:06]} Kg6 {[%emt 0:00:18]} 72. Rh8 {[%emt 0:00:01]} Rd2+ {[%emt 0:00:29]} 73. Ke3 {[%emt 0:00:02]} Rg2 {[%emt 0:00:14]} 74. Kf4 {[%emt 0:01:10]} Rf2+ {[%emt 0:00:38]} 75. Ke3 {[%emt 0:00:01]} Rb2 {[%emt 0:00:07]} 76. Kd4 {[%emt 0:00:13]} Kg7 {[%emt 0:00:26]} 77. Rh5 {[%emt 0:00:05]} Kf6 {[%emt 0:00:04]} 78. Rh6+ {[%emt 0:00:50]} Kg5 {[%emt 0:00:04]} 79. Rh8 {[%emt 0:00:16]} Rd2+ {[%emt 0:00:29]} 80. Ke3 {[%emt 0:00:01]} Rd1 {[%emt 0:00:12]} 81. Ke2 {[%emt 0:00:47]} Ra1 {[%emt 0:00:24]} 82. Ke3 {[%emt 0:01:54]} Re1+ {[%emt 0:01:04]} 83. Kd4 {[%emt 0:00:33]} Rd1+ {[%emt 0:00:25]} 84. Ke3 {[%emt 0:00:25]} Kf6 {[%emt 0:00:09]} 85. Ke2 {[%emt 0:01:24]} Rh1 {[%emt 0:00:19]} 86. Ke3 {[%emt 0:00:00]} Rd1 {[%emt 0:00:00]} 87. Ke2 {[%emt 0:00:18]} Ra1 {[%emt 0:00:23]} 88. Ke3 {[%emt 0:00:30]} Ke5 {[%emt 0:00:30]} 89. Re8+ {[%emt 0:00:04]} Kd5 {[%emt 0:00:06]} 90. Rf8 {[%emt 0:00:13]} Ra3+ {[%emt 0:01:07]} 91. Ke2 {[%emt 0:01:40]} Ke4 {[%emt 0:00:06]} 92. Re8+ {[%emt 0:00:09]} Kd4 {[%emt 0:00:04]} 93. Rf8 {[%emt 0:00:03]} Ra2+ {[%emt 0:00:07]} 94. Ke1 {[%emt 0:01:27]} Ke4 {[%emt 0:00:17]} 95. Rh8 {[%emt 0:00:07]} d5 {[%emt 0:01:41]} 96. h3 {[%emt 0:00:15]} gxh3 {[%emt 0:02:30]} 97. Rxh3 {[%emt 0:00:04]} d4 {[%emt 0:00:27]} 98. Kd1 {[%emt 0:00:38]} Rg2 {[%emt 0:00:32]} 99. Ke1 {[%emt 0:00:21]} d3 {[%emt 0:00:22]} 100. Rh8 {[%emt 0:00:54]} Rxg3 {[%emt 0:00:38]} 101. Re8+ {[%emt 0:00:05]} Kf3 {[%emt 0:01:05]} 102. Kd2 {[%emt 0:00:04]} Kf2 {[%emt 0:00:26]} 103. Rf8 {[%emt 0:00:20]} Rf3 {[%emt 0:00:11]} 104. Rf7 {[%emt 0:00:08]} f4 {[%emt 0:00:32]} 105. Rf8 {[%emt 0:00:13]} Kg2 {[%emt 0:00:42]} 106. Rg8+ {[%emt 0:00:04]} Rg3 {[%emt 0:00:46]} 107. Rf8 {[%emt 0:00:03]} f3 {[%emt 0:00:16]} 108. Kxd3 {[%emt 0:00:04]} Rg7 {[%emt 0:00:09]} 109. Ke3 {[%emt 0:00:32]} Re7+ {[%emt 0:00:05]} 110. Kf4 {[%emt 0:00:03]} f2 {[%emt 0:01:16]} 111. Rg8+ {[%emt 0:00:05]} Kf1 {[%emt 0:00:03]} 112. Ra8 {[%emt 0:00:14]} Rf7+ {[%emt 0:00:58]} 113. Ke3 {[%emt 0:00:15]} Kg2 {[%emt 0:00:38]} 114. Rg8+ {[%emt 0:00:05]} Kh3 {[%emt 0:00:23]} 115. Rh8+ {[%emt 0:00:05]} Kg4 {[%emt 0:00:11]} 0-1

[Event "WJCC U20 Girls 2019"]
[Site "New Delhi"]
[Date "2019.10.18"]
[Round "5.6"]
[White "Vaishali R"]
[Black "Vantika Agrawal"]
[Result "1-0"]
[ECO "A45"]
[WhiteElo "2385"]
[BlackElo "2283"]
[Annotator "NA"]
[PlyCount "97"]
[EventDate "2019.10.15"]
[EventType "swiss"]
[EventCountry "IND"]
[SourceTitle "playchess.com"]
[Source "ChessBase"]
[SourceQuality "1"]
[TimeControl "40/5400+30:1800+30"]

1. d4 {[%emt 0:00:07]} Nf6 {[%emt 0:00:26]} 2. Bf4 {[%emt 0:00:07]} g6 {[%emt 0:01:25]} 3. Nc3 {[%emt 0:00:10]} d5 {[%emt 0:00:09]} 4. e3 {[%emt 0:00:07]} Bg7 {[%emt 0:00:04]} 5. h4 {[%emt 0:00:11]} h5 {[%emt 0:00:43]} 6. Nf3 {[%emt 0:00:12]} Bg4 {[%emt 0:05:33]} 7. Be2 {[%emt 0:01:31]} Bxf3 {[%emt 0:01:07]} 8. gxf3 {[%emt 0:04:59]} c6 {[%emt 0:11:11]} 9. e4 {[%emt 0:09:46]} e6 {[%emt 0:08:11]} 10. Qd2 {[%emt 0:03:08]} a6 {[%emt 0:09:13]} 11. O-O-O {[%emt 0:05:41]} Nbd7 {[%emt 0:08:50]} 12. Kb1 {[%emt 0:03:16]} b5 {[%emt 0:08:11]} 13. Bd3 {[%emt 0:10:31]} Nb6 {[%emt 0:02:29]} 14. Bg5 {[%emt 0:07:23]} Qc7 {[%emt 0:02:11]} 15. Ne2 {[%emt 0:07:04]} Nc4 {[%emt 0:05:59]} 16. Qe1 {[%emt 0:01:20]} Nh7 {[%emt 0:07:58]} 17. Bc1 {[%emt 0:04:28]} Qa5 {[%emt 0:10:58]} 18. Qg1 {[%emt 0:03:38]} O-O-O {[%emt 0:01:58]} 19. Qg3 {[%emt 0:17:14]} Rd7 {[%emt 0:06:29]} 20. e5 {[%emt 0:05:14]} c5 {[%emt 0:04:59]} 21. f4 {[%emt 0:02:19]} Bf8 {[%emt 0:00:43]} 22. Rhg1 {[%emt 0:09:16]} Qb6 {[%emt 0:01:00]} 23. c3 {[%emt 0:01:38]} Be7 {[%emt 0:00:37]} 24. f5 {[%emt 0:01:30]} exf5 {[%emt 0:00:33]} 25. Nf4 {[%emt 0:00:38]} cxd4 {[%emt 0:00:22]} 26. cxd4 {[%emt 0:00:34]} Nf8 {[%emt 0:00:59]} 27. Qf3 {[%emt 0:00:41]} Qc6 {[%emt 0:00:36]} 28. b3 {[%emt 0:00:25]} Na3+ {[%emt 0:00:20]} 29. Bxa3 {[%emt 0:00:23]} Bxa3 {[%emt 0:00:05]} 30. Rc1 {[%emt 0:00:13]} Bxc1 {[%emt 0:00:42]} 31. Rxc1 {[%emt 0:00:02]} Qxc1+ {[%emt 0:00:23]} 32. Kxc1 {[%emt 0:00:01]} Ne6 {[%emt 0:00:22]} 33. Nxe6 {[%emt 0:01:29]} fxe6 {[%emt 0:00:05]} 34. Qg3 {[%emt 0:00:11]} Rg8 {[%emt 0:00:45]} 35. Qg5 {[%emt 0:00:17]} Rf7 {[%emt 0:00:20]} 36. Kd2 {[%emt 0:00:38]} Kb7 {[%emt 0:00:33]} 37. Be2 {[%emt 0:00:16]} Rgg7 {[%emt 0:01:01]} 38. Qd8 {[%emt 0:00:44]} Rc7 {[%emt 0:00:14]} 39. Qe8 {[%emt 0:01:31]} Rce7 {[%emt 0:00:54]} 40. Qd8 {[%emt 0:00:18]} Rc7 {[%emt 0:00:14]} 41. Qf8 {[%emt 0:02:12]} Rce7 $18 {[%emt 0:04:21]} 42. Qf6 {[%emt 0:06:47]} Kc7 {[%emt 0:07:38]} 43. Ke3 {[%emt 0:01:11]} Kd7 {[%emt 0:01:56]} 44. Qf8 {[%emt 0:02:25]} Kc7 {[%emt 0:00:58]} 45. Qa8 {[%emt 0:00:42]} Kb6 {[%emt 0:00:37]} 46. Qb8+ {[%emt 0:00:15]} Ka5 {[%emt 0:01:27]} 47. Qd6 {[%emt 0:00:55]} Rgf7 {[%emt 0:01:27]} 48. b4+ {[%emt 0:00:19]} Ka4 {[%emt 0:00:13]} 49. Qxa6+ {[%emt 0:00:07]} 1-0

[Event "WJCC U20 Girls 2019"]
[Site "New Delhi"]
[Date "2019.10.18"]
[Round "5.7"]
[White "Divya Deshmukh"]
[Black "Mrudul Dehankar"]
[Result "1-0"]
[ECO "B14"]
[WhiteElo "2358"]
[BlackElo "2227"]
[Annotator "NA"]
[PlyCount "195"]
[EventDate "2019.10.15"]
[EventType "swiss"]
[EventCountry "IND"]
[SourceTitle "playchess.com"]
[Source "ChessBase"]
[SourceQuality "1"]
[TimeControl "40/5400+30:1800+30"]

1. e4 {[%emt 0:00:00]} c6 {[%emt 0:00:00]} 2. d4 {[%emt 0:00:00]} d5 {[%emt 0:00:07]} 3. exd5 {[%emt 0:00:00]} cxd5 {[%emt 0:00:06]} 4. c4 {[%emt 0:00:00]} Nf6 {[%emt 0:00:10]} 5. Nc3 {[%emt 0:00:05]} g6 {[%emt 0:01:26]} 6. Nf3 {[%emt 0:01:18]} Bg7 {[%emt 0:00:58]} 7. c5 {[%emt 0:06:04]} Nc6 {[%emt 0:01:10]} 8. Bb5 {[%emt 0:08:50]} O-O {[%emt 0:00:37]} 9. Bxc6 {[%emt 0:01:01]} bxc6 {[%emt 0:00:04]} 10. Ne5 {[%emt 0:00:05]} Qc7 {[%emt 0:12:28]} 11. Qa4 $11 {[%emt 0:06:11]} Bb7 {[%emt 0:21:01]} 12. O-O {[%emt 0:12:16]} Nd7 {[%emt 0:17:06]} 13. Nxd7 {[%emt 0:06:22]} Qxd7 {[%emt 0:00:25]} 14. Be3 {[%emt 0:07:10]} e5 {[%emt 0:05:56]} 15. dxe5 {[%emt 0:00:28]} Bxe5 {[%emt 0:00:16]} 16. Bd4 {[%emt 0:00:09]} Bc7 {[%emt 0:06:35]} 17. Rfe1 {[%emt 0:15:32]} Rfe8 {[%emt 0:02:05]} 18. g3 {[%emt 0:05:16]} a5 {[%emt 0:03:05]} 19. Qc2 {[%emt 0:01:28]} Re6 {[%emt 0:07:29]} 20. Qd2 {[%emt 0:02:51]} Rae8 {[%emt 0:01:21]} 21. Kg2 {[%emt 0:11:50]} Bc8 {[%emt 0:05:05]} 22. f3 {[%emt 0:05:13]} f6 {[%emt 0:05:45]} 23. Bf2 {[%emt 0:04:40]} Rxe1 {[%emt 0:04:18]} 24. Rxe1 {[%emt 0:00:20]} Qh3+ {[%emt 0:01:07]} 25. Kg1 {[%emt 0:00:07]} Rxe1+ {[%emt 0:00:07]} 26. Qxe1 {[%emt 0:00:06]} Kf7 {[%emt 0:00:05]} 27. Ne2 {[%emt 0:01:24]} Ba6 {[%emt 0:02:02]} 28. Nd4 {[%emt 0:00:56]} Qd7 {[%emt 0:00:06]} 29. a4 {[%emt 0:00:59]} Bd8 {[%emt 0:02:52]} 30. Be3 {[%emt 0:02:19]} Bc8 {[%emt 0:00:31]} 31. Bd2 {[%emt 0:00:23]} Be7 {[%emt 0:00:31]} 32. Nb3 {[%emt 0:01:17]} Ba6 {[%emt 0:00:29]} 33. Be3 {[%emt 0:00:16]} Qf5 {[%emt 0:00:31]} 34. Nd4 {[%emt 0:00:35]} Qd3 {[%emt 0:00:30]} 35. Nxc6 {[%emt 0:00:16]} Bf8 {[%emt 0:00:28]} 36. Nd8+ {[%emt 0:01:14]} Kg8 {[%emt 0:00:32]} 37. Ne6 {[%emt 0:00:42]} d4 {[%emt 0:00:28]} 38. Bxd4 {[%emt 0:00:42]} Qxf3 {[%emt 0:00:12]} 39. Nf4 {[%emt 0:00:27]} Bc4 {[%emt 0:00:46]} 40. Ng2 {[%emt 0:00:36]} Qd5 {[%emt 0:00:32]} 41. Qe3 {[%emt 0:05:17]} g5 {[%emt 0:06:00]} 42. h4 {[%emt 0:08:38]} h6 {[%emt 0:04:39]} 43. Qf2 {[%emt 0:01:29]} Be7 {[%emt 0:02:11]} 44. Kh2 {[%emt 0:01:42]} Kf7 {[%emt 0:02:09]} 45. Bc3 {[%emt 0:08:55]} Qxc5 {[%emt 0:13:10]} 46. Qc2 {[%emt 0:00:05]} Kg7 {[%emt 0:01:33]} 47. Bxa5 {[%emt 0:00:04]} Bd5 {[%emt 0:03:49]} 48. Bc3 {[%emt 0:03:00]} Bc6 {[%emt 0:00:18]} 49. h5 {[%emt 0:01:14]} Qd5 {[%emt 0:00:39]} 50. Qg6+ {[%emt 0:00:33]} Kf8 {[%emt 0:00:02]} 51. Qxh6+ {[%emt 0:00:01]} Ke8 {[%emt 0:00:14]} 52. Qg6+ {[%emt 0:00:02]} Kf8 {[%emt 0:00:34]} 53. Qc2 {[%emt 0:01:52]} g4 {[%emt 0:01:11]} 54. h6 {[%emt 0:01:41]} Qh5+ {[%emt 0:00:33]} 55. Nh4 {[%emt 0:00:00]} Qd5 {[%emt 0:00:30]} 56. Qc1 {[%emt 0:00:46]} Kg8 {[%emt 0:00:28]} 57. Qb1 {[%emt 0:01:40]} f5 {[%emt 0:00:24]} 58. h7+ {[%emt 0:00:03]} Kxh7 {[%emt 0:00:38]} 59. Qxf5+ {[%emt 0:00:02]} Qxf5 {[%emt 0:00:11]} 60. Nxf5 {[%emt 0:00:00]} Bc5 {[%emt 0:00:47]} 61. b4 {[%emt 0:00:22]} Bxb4 {[%emt 0:00:33]} 62. Bxb4 {[%emt 0:00:28]} Bxa4 {[%emt 0:00:01]} 63. Be7 {[%emt 0:01:11]} Bc6 {[%emt 0:00:46]} 64. Kg1 {[%emt 0:01:22]} Kg6 {[%emt 0:00:20]} 65. Nd4 {[%emt 0:00:08]} Bd7 {[%emt 0:00:48]} 66. Kf2 {[%emt 0:00:09]} Kf7 {[%emt 0:00:30]} 67. Bh4 {[%emt 0:00:01]} Kg6 {[%emt 0:00:05]} 68. Ke3 {[%emt 0:00:02]} Kf7 {[%emt 0:00:54]} 69. Kf4 {[%emt 0:00:01]} Kg6 {[%emt 0:00:01]} 70. Nb3 {[%emt 0:00:25]} Be6 {[%emt 0:01:05]} 71. Nc5 {[%emt 0:00:01]} Bc8 {[%emt 0:00:03]} 72. Ne4 {[%emt 0:00:01]} Bb7 {[%emt 0:00:56]} 73. Nf6 {[%emt 0:00:03]} Bf3 {[%emt 0:00:30]} 74. Nxg4 {[%emt 0:00:02]} Bd1 {[%emt 0:00:11]} 75. Ne5+ {[%emt 0:00:02]} Kg7 {[%emt 0:00:49]} 76. Nf3 {[%emt 0:00:10]} Bb3 {[%emt 0:00:27]} 77. g4 {[%emt 0:00:05]} Bc2 {[%emt 0:00:34]} 78. Ne5 {[%emt 0:00:20]} Bb1 {[%emt 0:00:27]} 79. Bd8 {[%emt 0:00:05]} Bc2 {[%emt 0:00:23]} 80. g5 {[%emt 0:00:08]} Bb1 {[%emt 0:00:20]} 81. Bf6+ {[%emt 0:00:08]} Kh7 {[%emt 0:00:06]} 82. Nf3 {[%emt 0:02:15]} Bc2 {[%emt 0:00:49]} 83. Nh4 {[%emt 0:00:52]} Bb1 {[%emt 0:00:37]} 84. Ke5 {[%emt 0:00:02]} Bc2 {[%emt 0:00:33]} 85. Kd6 {[%emt 0:00:36]} Bd3 {[%emt 0:00:42]} 86. Ng2 {[%emt 0:00:12]} Bb1 {[%emt 0:00:24]} 87. Nf4 {[%emt 0:00:03]} Bc2 {[%emt 0:00:29]} 88. Ke7 {[%emt 0:00:04]} Bb1 {[%emt 0:00:27]} 89. Be5 {[%emt 0:00:35]} Bc2 {[%emt 0:00:16]} 90. Kf6 {[%emt 0:00:09]} Bb1 {[%emt 0:00:24]} 91. Nh5 {[%emt 0:01:07]} Bc2 {[%emt 0:00:41]} 92. Ng7 {[%emt 0:00:18]} Bg6 {[%emt 0:00:32]} 93. Bd4 {[%emt 0:00:03]} Bc2 {[%emt 0:00:47]} 94. Nf5 {[%emt 0:00:04]} Bb3 {[%emt 0:00:32]} 95. g6+ {[%emt 0:00:14]} Kg8 {[%emt 0:00:05]} 96. Bc5 {[%emt 0:00:13]} Ba2 {[%emt 0:00:52]} 97. Nh6+ {[%emt 0:00:04]} Kh8 {[%emt 0:00:03]} 98. Bd4 {[%emt 0:00:03]} 1-0

[Event "WJCC U20 Girls 2019"]
[Site "New Delhi"]
[Date "2019.10.18"]
[Round "5.8"]
[White "Olde, Margareth"]
[Black "Berdnyk, Mariia"]
[Result "1/2-1/2"]
[ECO "D70"]
[WhiteElo "2205"]
[BlackElo "2349"]
[Annotator "NA"]
[PlyCount "139"]
[EventDate "2019.10.15"]
[EventType "swiss"]
[EventCountry "IND"]
[SourceTitle "playchess.com"]
[Source "ChessBase"]
[SourceQuality "1"]
[TimeControl "40/5400+30:1800+30"]

1. d4 {[%emt 0:00:00]} Nf6 {[%emt 0:00:00]} 2. c4 {[%emt 0:00:00]} g6 {[%emt 0:00:00]} 3. Nf3 {[%emt 0:00:00]} Bg7 {[%emt 0:00:00]} 4. Nc3 {[%emt 0:00:00]} O-O {[%emt 0:00:00]} 5. e4 {[%emt 0:00:00]} d6 {[%emt 0:00:00]} 6. h3 {[%emt 0:00:13]} e5 {[%emt 0:00:00]} 7. d5 {[%emt 0:00:06]} a5 {[%emt 0:00:00]} 8. g4 {[%emt 0:00:09]} Na6 {[%emt 0:00:08]} 9. Be3 {[%emt 0:00:08]} Nd7 {[%emt 0:00:08]} 10. a3 {[%emt 0:01:07]} Nb6 {[%emt 0:00:06]} 11. Rg1 {[%emt 0:01:20]} Bd7 {[%emt 0:00:09]} 12. h4 {[%emt 0:06:56]} Nc5 {[%emt 0:00:49]} 13. b3 {[%emt 0:03:27]} a4 {[%emt 0:00:05]} 14. b4 {[%emt 0:02:53]} Nb3 {[%emt 0:00:04]} 15. Rb1 {[%emt 0:02:03]} c5 {[%emt 0:00:11]} 16. bxc5 {[%emt 0:13:11]} Nc8 {[%emt 0:00:09]} 17. Nb5 $17 {[%emt 0:18:52]} (17. Nd2 $14) 17... dxc5 {[%emt 0:05:15]} 18. Bd3 {[%emt 0:03:47]} Bxb5 {[%emt 0:03:44]} 19. cxb5 {[%emt 0:00:07]} Nd6 {[%emt 0:00:30]} 20. Nd2 {[%emt 0:06:31]} c4 {[%emt 0:09:24]} 21. Nxc4 {[%emt 0:04:03]} Nxb5 {[%emt 0:00:39]} 22. Rb2 {[%emt 0:10:03]} N5d4 {[%emt 0:03:57]} 23. Bxd4 {[%emt 0:02:47]} exd4 {[%emt 0:00:09]} 24. Nd2 {[%emt 0:02:58]} Nc5 {[%emt 0:02:46]} 25. Nf3 {[%emt 0:02:01]} Re8 {[%emt 0:15:32]} 26. Re2 {[%emt 0:01:46]} Qa5+ {[%emt 0:00:07]} 27. Kf1 {[%emt 0:00:04]} Qc3 {[%emt 0:00:52]} 28. Ne1 {[%emt 0:02:06]} Qxa3 {[%emt 0:00:18]} 29. f4 {[%emt 0:00:24]} Qb3 {[%emt 0:03:39]} 30. Qxb3 {[%emt 0:01:28]} Nxb3 {[%emt 0:00:05]} 31. e5 {[%emt 0:01:29]} a3 {[%emt 0:00:32]} 32. Ra2 {[%emt 0:03:30]} Nc1 {[%emt 0:03:40]} 33. Ra1 {[%emt 0:00:08]} a2 {[%emt 0:03:29]} 34. Rg2 {[%emt 0:03:32]} Rec8 {[%emt 0:03:34]} 35. d6 {[%emt 0:02:50]} Rc3 {[%emt 0:02:08]} 36. Rd2 {[%emt 0:02:57]} Kf8 {[%emt 0:01:19]} 37. Bc2 {[%emt 0:01:56]} b5 {[%emt 0:10:01]} 38. Rd1 {[%emt 0:02:26]} b4 {[%emt 0:07:38]} 39. Rdxc1 {[%emt 0:01:09]} b3 {[%emt 0:00:03]} 40. Bxb3 {[%emt 0:00:06]} Rxc1 {[%emt 0:00:04]} 41. Rxc1 {[%emt 0:30:03]} a1=Q 42. Rxa1 {[%emt 0:00:08]} Rxa1 {[%emt 0:30:09]} 43. Kf2 {[%emt 0:00:00]} Ra3 {[%emt 0:00:00]} 44. Bc4 {[%emt 0:00:00]} Ra4 {[%emt 0:00:00]} 45. Bd3 {[%emt 0:00:00]} Ra5 {[%emt 0:00:00]} 46. g5 {[%emt 0:00:00]} Bxe5 {[%emt 0:00:00]} 47. fxe5 {[%emt 0:00:00]} Rxe5 {[%emt 0:00:00]} 48. Nc2 {[%emt 0:00:00]} Rd5 {[%emt 0:00:00]} 49. Kf3 {[%emt 0:00:00]} f6 {[%emt 0:00:00]} 50. gxf6 {[%emt 0:00:00]} Rxd6 {[%emt 0:00:00]} 51. Ke4 {[%emt 0:00:00]} Rxf6 {[%emt 0:00:00]} 52. Nxd4 {[%emt 0:00:00]} Kg7 {[%emt 0:00:00]} 53. Ne2 {[%emt 0:00:00]} Rf2 {[%emt 0:00:00]} 54. Nd4 {[%emt 0:01:35]} Kh6 {[%emt 0:00:00]} 55. Nf3 {[%emt 0:00:34]} Kh5 {[%emt 0:00:00]} 56. Kf4 {[%emt 0:00:31]} Rg2 {[%emt 0:00:00]} 57. Bb5 {[%emt 0:01:50]} Rg4+ {[%emt 0:00:00]} 58. Ke3 {[%emt 0:00:06]} Rb4 {[%emt 0:00:00]} 59. Bd7 {[%emt 0:00:43]} Kh6 {[%emt 0:00:00]} 60. Kf2 {[%emt 0:00:25]} Kg7 {[%emt 0:00:00]} 61. Kg3 {[%emt 0:00:16]} Kf6 {[%emt 0:00:00]} 62. Bc8 {[%emt 0:01:41]} Ke7 {[%emt 0:00:00]} 63. Bg4 {[%emt 0:00:23]} h5 {[%emt 0:00:00]} 64. Bc8 {[%emt 0:00:29]} Kd6 {[%emt 0:00:00]} 65. Bh3 {[%emt 0:00:28]} Kd5 {[%emt 0:00:00]} 66. Bd7 {[%emt 0:01:14]} Ke4 {[%emt 0:00:00]} 67. Ng5+ {[%emt 0:01:08]} Ke3 {[%emt 0:00:00]} 68. Be8 {[%emt 0:00:45]} Rb6 {[%emt 0:03:16]} 69. Bf7 {[%emt 0:00:15]} Rf6 {[%emt 0:00:31]} 70. Be8 {[%emt 0:00:16]} 1/2-1/2

[Event "WJCC U20 Girls 2019"]
[Site "New Delhi"]
[Date "2019.10.18"]
[Round "5.9"]
[White "Antova, Gabriela"]
[Black "Afraoui, Anaelle"]
[Result "1/2-1/2"]
[ECO "E69"]
[WhiteElo "2318"]
[BlackElo "2106"]
[Annotator "NA"]
[PlyCount "108"]
[EventDate "2019.10.15"]
[EventType "swiss"]
[EventCountry "IND"]
[SourceTitle "playchess.com"]
[Source "ChessBase"]
[SourceQuality "1"]
[TimeControl "40/5400+30:1800+30"]

1. d4 {[%emt 0:00:00]} Nf6 {[%emt 0:00:00]} 2. c4 {[%emt 0:00:00]} d6 {[%emt 0:00:00]} 3. Nf3 {[%emt 0:00:28]} g6 {[%emt 0:00:00]} 4. g3 {[%emt 0:00:13]} Bg7 {[%emt 0:00:12]} 5. Bg2 {[%emt 0:00:06]} O-O {[%emt 0:00:11]} 6. O-O {[%emt 0:00:05]} c6 {[%emt 0:00:15]} 7. Nc3 {[%emt 0:00:49]} Nbd7 {[%emt 0:00:14]} 8. e4 {[%emt 0:00:59]} e5 {[%emt 0:00:13]} 9. h3 {[%emt 0:03:33]} Qb6 {[%emt 0:01:49]} 10. Re1 {[%emt 0:01:33]} exd4 {[%emt 0:01:00]} 11. Nxd4 {[%emt 0:00:31]} Re8 {[%emt 0:00:44]} 12. Nc2 {[%emt 0:01:01]} Ne5 {[%emt 0:04:08]} 13. b3 {[%emt 0:02:57]} Be6 {[%emt 0:10:05]} 14. Na4 {[%emt 0:13:58]} Qc7 {[%emt 0:05:33]} 15. Nd4 {[%emt 0:02:20]} Rad8 {[%emt 0:03:19]} 16. Qc2 {[%emt 0:15:27]} Bc8 {[%emt 0:08:53]} 17. Be3 {[%emt 0:02:08]} Ned7 {[%emt 0:04:21]} 18. Rad1 {[%emt 0:04:00]} Nf8 {[%emt 0:06:17]} 19. b4 {[%emt 0:10:51]} Qe7 {[%emt 0:06:53]} 20. Nc3 {[%emt 0:02:27]} Ne6 {[%emt 0:05:04]} 21. Nde2 {[%emt 0:05:53]} Nd7 {[%emt 0:01:40]} 22. Bxa7 {[%emt 0:03:45]} Ne5 {[%emt 0:01:18]} 23. Bb6 {[%emt 0:00:52]} Ng5 24. Bxd8 {[%emt 0:04:23]} Ngf3+ {[%emt 0:15:45]} 25. Kh1 {[%emt 0:01:06]} Rxd8 {[%emt 0:01:23]} 26. Nb1 {[%emt 0:05:06]} Nxe1 {[%emt 0:01:28]} 27. Rxe1 {[%emt 0:00:01]} Be6 {[%emt 0:00:22]} 28. Nd2 {[%emt 0:00:35]} f5 {[%emt 0:02:35]} 29. Nd4 {[%emt 0:02:43]} Bc8 {[%emt 0:05:12]} 30. exf5 {[%emt 0:00:41]} Qf7 {[%emt 0:00:39]} 31. f4 {[%emt 0:02:08]} Nd7 {[%emt 0:06:13]} 32. fxg6 {[%emt 0:00:38]} hxg6 {[%emt 0:00:07]} 33. N2f3 {[%emt 0:01:44]} Nb6 {[%emt 0:00:13]} 34. Ng5 {[%emt 0:05:40]} Qf6 {[%emt 0:03:22]} 35. Ndf3 {[%emt 0:00:53]} Bf5 {[%emt 0:01:03]} 36. Qe2 {[%emt 0:01:00]} Ra8 {[%emt 0:01:07]} 37. Nh4 {[%emt 0:01:02]} Bd7 {[%emt 0:01:05]} 38. c5 {[%emt 0:04:28]} dxc5 {[%emt 0:01:43]} 39. bxc5 {[%emt 0:00:11]} Nd5 {[%emt 0:00:04]} 40. Qc2 {[%emt 0:00:29]} Qc3 {[%emt 0:01:49]} 41. Qxc3 {[%emt 0:31:43]} Bxc3 {[%emt 0:31:20]} 42. Rc1 {[%emt 0:00:00]} Bb2 {[%emt 0:00:00]} 43. Rd1 {[%emt 0:00:00]} Kg7 {[%emt 0:00:00]} 44. Be4 {[%emt 0:00:00]} Rxa2 {[%emt 0:00:00]} 45. Nxg6 {[%emt 0:00:00]} Bf6 {[%emt 0:00:00]} 46. h4 {[%emt 0:00:00]} Bg4 {[%emt 0:00:00]} 47. Rb1 {[%emt 0:00:00]} Bc8 {[%emt 0:00:00]} 48. Ne5 {[%emt 0:00:00]} Nc3 {[%emt 0:00:00]} 49. Re1 {[%emt 0:00:00]} Ne2 {[%emt 0:00:00]} 50. g4 {[%emt 0:02:11]} Ng3+ {[%emt 0:00:00]} 51. Kg1 {[%emt 0:00:00]} Ne2+ {[%emt 0:00:00]} 52. Kf1 {[%emt 0:01:20]} Ng3+ {[%emt 0:00:00]} 53. Kg1 {[%emt 0:00:02]} Ne2+ {[%emt 0:00:00]} 54. Kf1 {[%emt 0:00:20]} Ng3+ {[%emt 0:00:00]} 1/2-1/2